bitfinex/quotes_ETHUSD_20220227
["timestamp","ask_amount","ask_price","bid_price","bid_amount"]
[1645956655501,3.8613,2765.3,2764.6,0.00566012]
[1645956656001,1.03758002,2765.0,2764.7,0.08357196]
[1645956656201,0.92282633,2765.0,2764.8,0.0892321]
[1645956656401,0.92282633,2765.0,2764.9,0.08357196]
[1645956656807,3.8613,2765.3,2764.9,0.08357196]
[1645956657002,1.79696006,2765.2,2764.9,0.08357196]
[1645956657207,1.79696006,2765.1,2764.9,0.08357196]
[1645956657405,0.3613,2764.9,2764.4,0.02264462]
[1645956657605,0.3613,2764.9,2764.5,0.08146371]
[1645956657806,1.4453,2764.9,2764.5,0.08146371]
[1645956658261,1.06351426,2764.6,2764.5,0.08146371]
[1645956658455,1.06351426,2764.6,2764.1,0.08316637]
[1645956658656,1.06351426,2764.6,2764.1,0.10410841]
[1645956658856,0.3613,2764.9,2764.2,0.08146371]
[1645956659057,1.43639739,2764.8,2764.2,0.08146371]
[1645956659756,0.3613,2765.0,2764.1,0.00170266]
[1645956659757,1.43639739,2764.9,2764.4,0.00566042]
[1645956659956,1.43686029,2764.8,2764.5,0.08146371]
[1645956660156,0.3613,2765.0,2764.5,0.08146371]
[1645956660356,1.43660484,2764.9,2764.5,0.08146371]
[1645956660958,1.43660484,2764.9,2764.6,0.08712399]
[1645956661157,1.24540525,2764.7,2764.6,0.00566028]
[1645956661359,1.24540525,2764.7,2764.6,0.08721719]
[1645956662002,1.5805,2765.0,2764.6,0.08155691]
[1645956662205,1.5805,2765.0,2764.7,0.08155691]
[1645956662206,1.43703424,2764.9,2764.7,0.08155691]
[1645956662506,1.43703424,2764.9,2764.8,0.08155691]
[1645956662903,1.43703424,2764.9,2764.6,0.08155691]
[1645956663103,1.43703424,2764.9,2764.5,0.00566031]
[1645956663104,1.43703424,2764.9,2764.7,0.08155691]
[1645956663304,1.43703424,2764.9,2764.7,0.0872171]
[1645956663505,1.43703424,2764.9,2764.8,0.08155691]
[1645956664610,1.43703424,2764.9,2764.7,0.00566019]
[1645956665506,1.43703424,2764.9,2764.0,0.00170266]
[1645956665765,1.2192,2765.0,2764.0,0.67913819]
[1645956665966,1.2192,2765.0,2764.7,0.00566022]
[1645956666163,1.2192,2765.0,2764.8,0.08142051]
[1645956666965,1.2192,2765.0,2764.1,0.00170266]
[1645956667172,1.2192,2765.0,2764.8,0.00566014]
[1645956667368,0.3028,2765.1,2764.9,0.08126992]
[1645956668373,14.47062874,2765.5,2764.9,0.00566007]
[1645956668569,1.43625333,2765.4,2765.0,0.08126992]
[1645956669503,1.43625333,2765.4,2765.1,0.0053604]
[1645956670306,1.43625333,2765.4,2764.7,0.00170266]
[1645956670505,1.43625333,2765.4,2764.7,0.08293063]
[1645956670705,1.43625333,2765.4,2765.1,0.00537047]
[1645956671511,1.43625333,2765.4,2764.7,0.00170266]
[1645956671710,1.43625333,2765.4,2765.1,0.00537047]
[1645956672712,1.43625333,2765.4,2764.7,0.00170266]
[1645956672912,1.43625333,2765.4,2765.1,0.00537047]
[1645956673353,1.43625333,2765.4,2764.4,0.01446017]
[1645956673554,1.43625333,2765.4,2764.5,0.08123928]
[1645956674055,0.01891171,2765.3,2765.1,1.29964265]
[1645956674256,0.01891171,2765.3,2764.4,2.19073553]
[1645956674457,0.01891171,2765.3,2764.5,0.08118405]
[1645956674859,0.01891171,2765.3,2764.6,0.08118405]
[1645956675055,0.01891171,2765.3,2764.7,0.08118405]
[1645956675256,0.01891171,2765.3,2764.8,0.08118405]
[1645956675458,0.00364899,2765.1,2764.9,1.52590552]
[1645956675656,0.00364899,2765.1,2765.0,0.08118405]
[1645956676255,0.00284899,2765.1,2765.0,0.08118405]
[1645956676457,0.01891171,2765.3,2765.0,0.08118405]
[1645956676657,0.00364899,2765.2,2765.1,0.08118405]
[1645956676863,1.4409616,2765.2,2764.5,0.08288015]
[1645956677115,0.00364899,2765.2,2764.5,0.08288015]
[1645956677521,1.45622997,2765.3,2764.5,0.08288015]
[1645956677716,1.43731826,2765.2,2764.5,0.08490169]
[1645956678118,1.43731826,2765.2,2764.6,0.08118405]
[1645956678417,1.43731826,2765.2,2764.7,0.08118405]
[1645956678616,1.43731826,2765.2,2764.8,0.08118405]
[1645956678816,1.43731826,2765.2,2764.9,0.08118405]
[1645956678817,0.01891325,2765.1,2764.9,0.08118405]
[1645956679017,0.02261876,2765.1,2764.7,1.08640645]
[1645956679217,0.02261876,2765.1,2764.8,0.08118405]
[1645956680022,1.43955647,2765.0,2764.9,0.08118405]
[1645956680319,1.43955647,2765.0,2764.5,0.0016961]
[1645956680519,1.43955647,2765.0,2764.5,0.08118405]
[1645956680779,1.43955647,2765.0,2764.6,0.08118405]
[1645956680976,1.21088379,2764.8,2764.7,0.08118405]
[1645956681276,1.43955647,2764.9,2764.3,0.76031568]
[1645956681576,1.43955647,2764.8,2764.4,0.08118405]
[1645956681774,0.02261856,2765.1,2764.5,0.08118405]
[1645956681974,0.02261856,2765.1,2764.6,0.08118405]
[1645956681975,1.44128408,2765.0,2764.6,0.08118405]
[1645956682179,1.06486518,2764.9,2764.7,0.08118405]
[1645956682378,1.44128408,2764.8,2764.4,0.67743553]
[1645956682779,1.44128408,2764.8,2764.5,0.00576145]
[1645956682980,1.44128408,2764.8,2764.6,0.08144688]
[1645956683783,1.44128408,2764.8,2764.7,0.08144688]
[1645956684183,1.44128408,2764.8,2764.6,0.08144688]
[1645956684711,1.44128408,2764.7,2764.6,0.08144688]
[1645956684912,1.44128408,2764.9,2764.4,0.75888241]
[1645956685115,1.44128408,2764.9,2764.5,0.00576131]
[1645956685313,1.44128408,2764.9,2764.6,0.08144688]
[1645956685714,3.5,2764.8,2764.6,0.08144688]
[1645956685915,1.44128408,2764.7,2764.6,0.08144688]
[1645956686112,1.44128408,2764.7,2764.3,0.08314298]
[1645956686113,4.94128408,2764.7,2764.3,0.08314298]
[1645956686313,1.44128408,2764.6,2764.5,0.00564338]
[1645956686514,1.44128408,2764.6,2764.5,0.08709026]
[1645956687119,1.44128408,2764.6,2764.5,0.08144688]
[1645956688359,1.44128408,2764.7,2764.5,0.08144688]
[1645956688560,1.44128408,2764.7,2764.6,0.08144688]
[1645956691462,15.90625408,2764.7,2764.6,0.08144688]
[1645956693618,17.08941006,2764.7,2764.6,0.08144688]
[1645956695118,17.08941006,2764.7,2764.6,0.08059737]
[1645956696362,14.01786414,2764.7,2764.6,0.08059737]
[1645956698969,14.37916414,2764.7,2764.5,0.00565067]
[1645956699169,14.37916414,2764.7,2764.2,0.0016961]
[1645956699370,14.37916414,2764.7,2763.9,0.0016961]
[1645956699371,14.52376414,2764.7,2763.9,0.0016961]
[1645956699606,17.41980388,2764.7,2764.5,0.00565067]
[1645956699812,1.19878731,2764.1,2763.7,2.13089119]
[1645956700004,3.4204,2764.6,2763.7,0.70004442]
[1645956700205,3.4204,2764.6,2763.7,0.24774442]
[1645956700405,3.4204,2764.6,2763.7,0.22513553]
[1645956700608,3.5,2764.5,2763.5,1.22276539]
[1645956701205,1.13057208,2764.1,2763.5,1.22276539]
[1645956701605,1.13057208,2764.1,2763.4,0.91106445]
[1645956701807,1.13057208,2764.1,2763.7,0.00201972]
[1645956702708,1.13057208,2764.1,2763.4,0.91106445]
[1645956703009,1.13057208,2764.1,2763.8,0.00201965]
[1645956703253,0.3613,2764.3,2763.5,0.74576946]
[1645956703457,0.3613,2764.3,2763.5,0.74746215]
[1645956704354,1.2786948,2764.2,2763.5,1.6585266]
[1645956704555,1.2786948,2764.2,2763.5,0.74576946]
[1645956704955,1.25831786,2764.4,2763.5,0.74576946]
[1645956705158,1.25831786,2764.4,2763.5,0.74746215]
[1645956705761,1.25831786,2764.4,2763.5,1.04746215]
[1645956705964,2.30567619,2764.4,2763.5,1.04746215]
[1645956706360,2.30567619,2764.4,2763.5,1.8062266]
[1645956706560,2.30567619,2764.4,2763.8,0.00201497]
[1645956707624,2.30567619,2764.4,2763.6,0.00169269]
[1645956707823,2.30567619,2764.4,2763.8,0.00601179]
[1645956708725,2.30567619,2764.4,2763.6,0.00169269]
[1645956708923,0.01891786,2764.4,2763.6,3.29500139]
[1645956709124,0.01891786,2764.4,2763.8,0.00601179]
[1645956709327,0.01891786,2764.4,2763.7,1.00226893]
[1645956709526,0.01891786,2764.4,2763.8,0.91106445]
[1645956709727,0.01891786,2764.4,2763.9,0.522]
[1645956709926,0.01891786,2764.4,2763.9,1.43306445]
[1645956710125,0.01891786,2764.4,2763.9,0.522]
[1645956710325,0.01891786,2764.4,2764.1,0.68146847]
[1645956710955,0.01891786,2764.4,2764.0,1.7105558]
[1645956711163,0.01891786,2764.4,2763.9,0.98146847]
[1645956711370,0.01891786,2764.4,2763.8,0.98146847]
[1645956711564,0.01891786,2764.4,2763.7,0.68348244]
[1645956712061,1.19924566,2764.1,2763.7,0.68348244]
[1645956712464,1.19924566,2764.1,2763.6,1.98146847]
[1645956712662,1.19924566,2764.1,2763.7,0.00601171]
[1645956713663,1.19924566,2764.1,2763.6,0.98146847]
[1645956713868,1.19924566,2764.1,2763.7,0.00601171]
[1645956714704,1.19924566,2764.1,2763.5,0.68146847]
[1645956715104,1.19924566,2764.1,2763.7,0.00601171]
[1645956716006,1.19924566,2764.1,2763.5,0.00168619]
[1645956716307,1.0793211,2764.1,2763.7,0.00601171]
[1645956716512,3.8613,2764.0,2763.7,0.00601171]
[1645956717113,0.3613,2764.0,2763.7,0.00601171]
[1645956717316,0.3613,2764.0,2763.4,0.68146847]
[1645956717513,3.8613,2763.9,2763.7,0.00601163]
[1645956717715,0.3613,2763.9,2763.7,0.00601163]
[1645956718358,0.3613,2763.9,2763.3,0.00168619]
[1645956718558,1.22453024,2763.4,2763.1,0.68315466]
[1645956718757,1.22453024,2763.4,2763.2,0.00168619]
[1645956718958,1.22453024,2763.4,2763.1,0.70551989]
[1645956719161,1.22453024,2763.4,2763.2,0.07644414]
[1645956719759,1.22453024,2763.4,2763.3,0.07644414]
[1645956719958,1.22453024,2763.4,2763.0,0.75791261]
[1645956720165,1.22453024,2763.4,2763.2,0.00601192]
[1645956720360,3.8613,2763.8,2763.3,0.07644414]
[1645956720761,0.3613,2763.8,2763.3,0.07644414]
[1645956720963,3.8613,2763.8,2763.4,0.07644414]
[1645956721161,3.8613,2763.8,2763.5,0.07644414]
[1645956721765,1.86286024,2763.7,2763.5,0.07644414]
[1645956722016,0.3613,2763.7,2763.5,0.07644414]
[1645956722219,1.73036904,2763.6,2763.1,0.00168619]
[1645956722421,1.73036904,2763.6,2763.5,0.00601167]
[1645956723019,3.23210575,2763.6,2763.5,0.08245888]
[1645956723220,3.23210575,2763.6,2763.5,0.07644721]
[1645956724323,1.73036904,2763.6,2763.5,0.07644721]
[1645956724519,0.02166541,2763.8,2763.5,0.07644721]
[1645956724721,0.02166541,2763.8,2763.6,0.07644721]
[1645956724920,1.50155553,2763.7,2763.4,0.00562813]
[1645956725120,0.02166541,2763.8,2763.5,0.0764458]
[1645956725321,0.02166541,2763.8,2763.5,0.0641268]
[1645956725521,1.18674255,2763.8,2763.4,0.00562813]
[1645956725757,1.18674255,2763.8,2763.2,0.00168619]
[1645956725959,1.18674255,2763.8,2763.5,0.00562805]
[1645956726759,1.18674255,2763.8,2763.2,0.00168619]
[1645956726961,1.18674255,2763.8,2763.0,0.68315466]
[1645956727161,1.18674255,2763.8,2763.5,0.00562805]
[1645956728064,1.18674255,2763.8,2763.1,0.00168619]
[1645956728262,1.18674255,2763.8,2763.5,0.00562805]
[1645956728464,0.02166541,2763.8,2763.5,0.00562805]
[1645956728864,1.1276,2763.9,2763.5,0.00562805]
[1645956729266,1.1276,2763.9,2763.3,4.18315466]
[1645956729518,1.1276,2763.9,2763.7,1.01529933]
[1645956729707,0.01909711,2764.0,2763.7,1.01529933]
[1645956729905,3.41573434,2764.4,2763.7,1.01529933]
[1645956730106,3.05443434,2764.4,2763.7,1.01529933]
[1645956730507,3.0485,2764.4,2763.7,1.01529933]
[1645956730711,3.05443484,2764.4,2763.7,1.32123582]
[1645956730908,0.00593484,2764.4,2763.7,5.18422201]
[1645956731107,0.00593484,2764.4,2764.2,1.25226967]
[1645956731708,12.83470816,2764.7,2764.2,1.25226967]
[1645956731907,0.00593518,2764.4,2763.8,0.00168619]
[1645956732914,12.83470816,2764.7,2763.8,0.00168619]
[1645956733116,0.00601032,2764.4,2763.8,0.00168619]
[1645956733969,1.41438675,2764.5,2763.8,0.00168619]
[1645956734367,0.00601032,2764.4,2763.8,0.68315466]
[1645956735169,1.41438675,2764.5,2763.8,0.68315466]
[1645956735371,1.41438675,2764.5,2763.8,0.00168619]
[1645956735568,0.00601032,2764.4,2763.8,0.00168619]
[1645956735773,3.86731032,2764.4,2763.8,0.00168619]
[1645956735969,3.86731032,2764.4,2763.7,0.00601199]
[1645956736171,0.15061032,2764.4,2763.7,0.00601199]
[1645956736471,0.1446,2764.4,2763.5,0.68146847]
[1645956736870,0.15061025,2764.4,2763.7,0.00601192]
[1645956737319,0.15061025,2764.4,2763.7,0.00769811]
[1645956737513,0.00601025,2764.4,2763.7,0.00769811]
[1645956737713,1.55898675,2764.5,2763.7,0.00168619]
[1645956737914,0.00601025,2764.4,2763.7,0.00769811]
[1645956738813,1.41438675,2764.5,2763.7,0.00168619]
[1645956739015,0.00601025,2764.4,2763.7,0.00769811]
[1645956741164,1.41438675,2764.5,2763.7,0.00168619]
[1645956741565,0.00601025,2764.4,2763.8,1.29009305]
[1645956742270,0.00601025,2764.4,2763.7,0.00769811]
[1645956742473,3.8613,2764.6,2763.7,0.00168619]
[1645956742871,0.00601032,2764.4,2763.7,0.00769818]
[1645956743472,0.00601032,2764.4,2763.7,0.00601199]
[1645956743670,3.5,2764.6,2763.6,0.00168619]
[1645956744072,0.00562711,2764.4,2763.7,0.00562868]
[1645956744272,0.00562711,2764.4,2763.7,0.00731487]
[1645956744515,0.00562711,2764.4,2763.7,0.00562868]
[1645956744725,1.25881193,2764.3,2763.7,0.00562868]
[1645956744912,1.25881193,2764.3,2763.6,0.68315442]
[1645956745119,1.25881193,2764.3,2763.7,0.00562868]
[1645956745512,1.25881193,2764.3,2763.8,0.07643728]
[1645956745513,1.51200139,2764.2,2763.8,0.07643728]
[1645956746315,1.51200139,2764.2,2763.9,0.07643728]
[1645956746517,1.51200139,2764.2,2764.0,0.07643728]
[1645956746716,1.51200139,2764.2,2763.7,0.00562861]
[1645956746717,1.51200139,2764.2,2764.1,0.07643728]
[1645956746914,1.51200139,2764.2,2763.8,0.07643728]
[1645956747122,5.01200139,2764.2,2763.8,0.07643728]
[1645956747322,3.5,2764.2,2763.8,0.07643728]
[1645956747522,1.51208198,2764.1,2763.9,0.07643728]
[1645956747726,1.25881193,2764.3,2764.0,0.07643728]
[1645956747921,1.51208565,2764.2,2764.1,0.07643728]
[1645956748121,1.51208565,2764.2,2763.8,0.07643728]
[1645956748576,5.01208565,2764.2,2763.9,0.07643728]
[1645956748775,1.51208565,2764.1,2764.0,0.07643728]
[1645956748975,1.51208565,2764.1,2763.8,0.07643728]
[1645956749977,1.51208565,2764.1,2763.9,0.07643728]
[1645956750176,1.25881193,2764.3,2764.0,0.07643728]
[1645956750381,1.51921265,2764.2,2764.1,0.07643728]
[1645956750778,1.51921265,2764.3,2763.8,0.07643728]
[1645956751177,1.51921265,2764.3,2763.9,0.07643728]
[1645956751377,1.51921265,2764.3,2763.8,0.07643728]
[1645956752015,5.01921265,2764.3,2763.8,0.07643728]
[1645956752221,5.01921265,2764.3,2763.3,0.98146847]
[1645956752222,1.51921265,2764.2,2763.4,0.7595917]
[1645956752423,1.51921265,2764.2,2763.7,0.00565225]
[1645956752622,1.51921265,2764.2,2763.8,0.07643728]
[1645956753420,1.51921265,2764.2,2763.9,0.07643728]
[1645956753622,1.51921265,2764.2,2764.0,0.07643728]
[1645956753823,1.51921265,2764.2,2764.1,0.07643728]
[1645956754021,1.51921265,2764.2,2763.8,0.07643941]
[1645956754221,1.51921265,2764.2,2763.9,0.07644142]
[1645956754623,1.51921265,2764.2,2764.0,0.07644142]
[1645956754826,1.51921265,2764.2,2764.1,0.07644142]
[1645956755022,1.51921265,2764.2,2764.1,0.07644104]
[1645956755222,1.51921265,2764.2,2763.8,0.07644089]
[1645956755423,1.51921265,2764.2,2763.9,0.07644089]
[1645956755628,1.51921265,2764.2,2764.0,0.07644089]
[1645956755863,1.51921265,2764.2,2763.7,0.0056523]
[1645956756065,1.51921265,2764.2,2763.8,0.07644125]
[1645956757169,1.51921265,2764.2,2763.9,0.07644125]
[1645956757370,1.51921265,2764.1,2764.0,0.07644125]
[1645956757770,1.51921265,2764.2,2763.8,0.07644125]
[1645956757969,1.51921265,2764.1,2763.9,0.07644125]
[1645956758174,1.51921265,2764.0,2763.5,1.71211193]
[1645956758469,2.94024445,2764.4,2763.7,0.00565236]
[1645956758668,1.52026015,2764.3,2763.8,0.07643918]
[1645956759531,1.52026015,2764.3,2763.9,0.07643918]
[1645956759722,1.52026015,2764.3,2764.0,0.07643918]
[1645956759925,5.02026015,2764.3,2764.1,0.07643918]
[1645956760128,1.52026015,2764.2,2763.7,0.00600934]
[1645956760326,5.02026015,2764.3,2763.8,0.07643823]
[1645956760528,1.52026015,2764.2,2763.8,0.07643823]
[1645956760731,1.52026015,2764.2,2763.9,0.07643823]
[1645956760926,1.52026015,2764.2,2764.0,0.07643823]
[1645956761226,2.93859487,2764.4,2763.5,1.03232941]
[1645956761227,1.52026015,2764.1,2763.5,1.03232941]
[1645956761426,1.52026015,2764.0,2763.6,0.07644176]
[1645956761627,1.52026015,2763.9,2763.6,0.07644176]
[1645956761832,3.5,2764.3,2763.6,0.07644176]
[1645956762031,1.52043133,2764.2,2763.6,0.07644176]
[1645956762229,1.52043133,2764.1,2763.6,0.07812771]
[1645956762430,1.52043133,2764.0,2763.6,0.07644176]
[1645956762630,3.5,2764.3,2763.6,0.07644176]
[1645956762930,1.52035063,2764.2,2763.6,0.07644176]
[1645956763131,1.52035063,2764.2,2763.7,0.00594913]
[1645956763368,1.52035063,2764.2,2763.8,0.07644176]
[1645956764369,1.52035063,2764.2,2763.9,0.07644176]
[1645956764668,1.52035063,2764.2,2764.0,0.07644176]
[1645956764868,1.52035063,2764.2,2763.7,0.00594942]
[1645956765069,1.52035063,2764.2,2763.8,0.07643963]
[1645956765469,0.3613,2764.1,2763.9,0.07643963]
[1645956765671,1.88165063,2764.0,2763.8,0.07643963]
[1645956765974,0.3613,2764.0,2763.9,0.07644122]
[1645956766169,1.88186404,2764.0,2763.8,0.07644122]
[1645956766369,1.52056663,2763.9,2763.8,0.07644122]
[1645956766569,0.3613,2764.0,2763.8,0.07644122]
[1645956766770,2.88596345,2763.9,2763.7,0.00600913]
[1645956767047,2.88596345,2763.9,2763.8,0.0764411]
[1645956767048,1.36540419,2763.9,2763.8,0.0764411]
[1645956767640,2.88600246,2763.9,2763.8,0.0764411]
[1645956767840,2.88600246,2763.9,2763.7,0.00600906]
[1645956767841,2.88599905,2763.9,2763.7,0.00600906]
[1645956768041,1.2269,2764.1,2763.8,0.0764411]
[1645956768441,1.52080991,2764.0,2763.8,0.0764411]
[1645956768748,1.2269,2764.1,2763.8,0.0764411]
[1645956768943,1.52087583,2764.0,2763.8,0.0764411]
[1645956769143,1.13842753,2764.0,2763.9,0.0764411]
[1645956769341,2.65931062,2764.0,2763.8,0.0764411]
[1645956769542,1.52088704,2763.9,2763.8,0.0764411]
[1645956769741,1.2269,2764.1,2763.8,0.0764411]
[1645956770141,1.52104437,2764.0,2763.8,0.0764411]
[1645956770342,1.52819143,2763.9,2763.7,0.0060092]
[1645956770542,1.2269,2764.1,2763.7,0.0060092]
[1645956770771,1.52816325,2764.0,2763.7,0.0060092]
[1645956771375,1.52816325,2764.0,2763.8,1.02123841]
[1645956771769,1.52816325,2763.9,2763.8,1.02123841]
[1645956771971,12.83470816,2764.2,2763.8,1.02123841]
[1645956771972,1.52816325,2764.1,2763.8,1.02123841]
[1645956772175,1.52816325,2764.1,2763.7,0.30600906]
[1645956772577,1.52816325,2764.1,2763.4,0.00168595]
[1645956772775,1.52816325,2764.1,2763.7,0.00600913]
[1645956773377,1.52816325,2764.1,2763.7,1.3605043]
[1645956773778,1.52816325,2764.1,2763.7,1.35449517]
[1645956773982,1.52816325,2764.1,2763.7,1.36012065]
[1645956774911,1.52816325,2764.1,2763.4,0.00168595]
[1645956775112,1.52816325,2764.1,2763.7,0.00562548]
[1645956776212,1.52816325,2764.1,2763.4,0.00168595]
[1645956776521,1.52816325,2764.1,2763.7,0.00562548]
[1645956777218,1.52816325,2764.1,2763.6,1.33323334]
[1645956777621,1.52816325,2764.1,2763.7,0.00562548]
[1645956778474,1.52816325,2764.1,2763.4,0.9127504]
[1645956778874,1.52816325,2764.1,2763.7,0.0056512]
[1645956779083,1.52721146,2764.1,2763.7,0.0056512]
[1645956779272,12.83470816,2764.2,2763.8,1.77758519]
[1645956779474,12.83470816,2764.2,2763.9,4.41106445]
[1645956779875,12.83470816,2764.2,2763.9,4.71106445]
[1645956780076,12.83470816,2764.2,2763.9,5.71106445]
[1645956781679,12.83470816,2764.2,2764.0,1.2659]
[1645956781878,12.83470816,2764.2,2764.1,3.5]
[1645956782131,12.83470816,2764.2,2764.1,4.85566445]
[1645956782428,12.83470816,2764.2,2764.1,5.71106445]
[1645956782627,12.83470816,2764.2,2764.1,4.8]
[1645956785230,12.83470816,2764.2,2764.1,16.2013]
[1645956786065,12.83470816,2764.2,2764.1,5.1613]
[1645956786262,12.83470816,2764.2,2764.1,4.8]
[1645956787766,12.83470816,2764.2,2764.1,16.2013]
[1645956787965,12.83470816,2764.2,2764.1,15.84]
[1645956788370,1.71942728,2765.4,2764.3,11.4013]
[1645956788569,0.14556,2765.5,2764.3,11.4013]
[1645956788570,0.00096,2765.5,2764.7,11.04]
[1645956788769,0.00096,2765.8,2764.9,11.04]
[1645956788973,0.00096,2765.8,2765.0,15.062]
[1645956789168,0.1446,2766.2,2765.2,11.4013]
[1645956789169,0.00096,2766.0,2765.2,11.4013]
[1645956789536,0.00096,2766.1,2765.3,4.022]
[1645956789718,0.68467507,2766.4,2765.5,0.9041]
[1645956789719,0.68563507,2766.3,2765.5,0.9041]
[1645956789920,0.68467507,2766.3,2765.5,0.9041]
[1645956790126,0.70868577,2766.4,2765.6,3.5]
[1645956790323,0.0240107,2766.4,2765.6,4.5]
[1645956790520,0.68563507,2766.5,2765.6,4.5]
[1645956790721,0.00096,2766.5,2765.6,4.49913207]
[1645956790923,0.00600421,2766.1,2765.6,4.49913207]
[1645956791327,0.00600421,2766.1,2765.6,1.0]
[1645956791722,0.00096,2766.3,2765.8,1.21129511]
[1645956791922,1.73293894,2766.4,2765.5,1.5041]
[1645956791923,0.11845347,2765.7,2765.6,1.21594221]
[1645956792131,0.11845347,2765.7,2765.6,1.51594221]
[1645956792528,0.11845347,2765.7,2765.6,1.21594221]
[1645956792728,0.11845347,2765.7,2765.6,1.51594221]
[1645956793974,0.11845347,2765.7,2765.6,1.21594221]
[1645956794972,0.11845347,2765.7,2765.6,1.51594221]
[1645956796172,0.11845347,2765.7,2765.6,1.21594221]
[1645956796872,0.06845347,2765.7,2765.6,1.21594221]
[1645956797322,0.06845347,2765.7,2765.6,1.51594221]
[1645956801674,0.06845347,2765.7,2765.6,1.21594221]
[1645956802078,0.06845347,2765.7,2765.2,1.2079]
[1645956802680,0.06845347,2765.7,2764.7,1.80847]
[1645956802880,0.00576365,2765.6,2764.7,2.96477]
[1645956803079,1.32077604,2765.6,2765.1,1.26161075]
[1645956803285,1.32077604,2765.6,2764.7,2.96477]
[1645956803481,0.3613,2765.5,2764.7,1.80847]
[1645956804082,0.00576379,2765.4,2764.9,0.00364362]
[1645956804279,0.00576379,2765.4,2764.9,1.3327796]
[1645956804522,0.00576379,2765.4,2764.9,1.6327796]
[1645956804914,3.8613,2765.5,2764.7,1.80847]
[1645956805122,0.3613,2765.3,2764.5,0.25]
[1645956805316,0.3613,2765.1,2764.3,3.59794121]
[1645956805514,0.3613,2764.9,2764.3,3.59794121]
[1645956806314,0.3613,2764.9,2764.1,1.38541193]
[1645956806315,1.31830476,2764.6,2764.1,1.38541193]
[1645956806515,0.00564264,2764.7,2764.2,0.07642487]
[1645956807122,0.00564264,2764.7,2763.8,0.25]
[1645956807320,0.3613,2764.8,2763.9,0.07642556]
[1645956807519,0.00564275,2764.6,2764.0,0.07642556]
[1645956807723,0.00564275,2764.6,2764.1,0.07642556]
[1645956807919,0.00564275,2764.6,2764.2,0.07642556]
[1645956808119,0.00564275,2764.6,2764.1,1.02585303]
[1645956808374,0.00564275,2764.6,2764.2,0.07642491]
[1645956808578,0.3613,2764.7,2764.2,0.07642491]
[1645956808776,0.00565102,2764.5,2764.2,0.07642491]
[1645956809776,1.39701142,2765.0,2764.2,0.07642491]
[1645956809974,0.00565102,2764.5,2764.2,0.07642491]
[1645956810380,0.00565102,2764.5,2764.2,0.98097491]
[1645956810674,0.00565102,2764.5,2764.3,0.07642491]
[1645956810875,5.0215,2765.2,2764.3,0.07642491]
[1645956811077,1.13039519,2765.0,2764.3,0.07642491]
[1645956811278,0.00565102,2764.5,2764.3,0.07642491]
[1645956811878,0.00485102,2764.5,2764.3,0.07642491]
[1645956812120,0.3613,2765.1,2764.3,0.07642491]
[1645956812520,1.5215,2765.2,2764.3,0.07642491]
[1645956813125,1.85014109,2765.1,2764.3,0.07642491]
[1645956813321,1.48900829,2765.0,2764.3,0.07642491]
[1645956813521,2.53416969,2765.0,2764.3,0.07642491]
[1645956813822,1.0451614,2765.0,2764.3,0.07642491]
[1645956814623,0.3613,2764.9,2764.3,0.07642491]
[1645956815621,0.3613,2764.9,2764.4,0.07642491]
[1645956815866,0.3613,2764.9,2764.5,0.07642491]
[1645956816067,0.00600986,2764.7,2764.2,0.07642491]
[1645956816266,0.00600986,2764.7,2764.3,0.0764201]
[1645956816467,0.00600986,2764.7,2764.4,0.0764201]
[1645956816667,0.00600986,2764.7,2764.1,1.32585303]
[1645956816867,0.3613,2764.9,2764.2,0.07642273]
[1645956817276,0.0060099,2764.7,2764.2,0.07642273]
[1645956818278,3.8613,2764.9,2764.3,0.07642273]
[1645956818477,0.00600997,2764.6,2764.4,0.07642273]
[1645956818676,0.00600997,2764.6,2763.9,2.11499151]
[1645956818877,0.00600997,2764.6,2764.0,0.37642525]
[1645956819076,0.00600997,2764.6,2764.1,1.1542864]
[1645956819277,3.8613,2764.9,2764.2,0.07642525]
[1645956819534,1.85210897,2764.8,2764.2,0.07642525]
[1645956819720,0.00601008,2764.4,2764.2,0.07642525]
[1645956820522,0.3613,2764.8,2764.2,0.07642525]
[1645956820729,0.00601008,2764.4,2764.2,0.07642525]
[1645956821121,0.00601008,2764.4,2764.3,0.07642525]
[1645956821323,0.00601008,2764.4,2764.1,0.07642525]
[1645956821720,0.3613,2764.8,2764.1,0.07642525]
[1645956821923,0.00601007,2764.4,2764.1,0.07642525]
[1645956822127,0.00601007,2764.4,2764.3,1.16781609]
[1645956822329,0.00601007,2764.4,2764.3,1.24424134]
[1645956822927,1.4064614,2765.0,2764.3,1.24424134]
[1645956823374,0.00601004,2764.5,2764.4,0.07642525]
[1645956824068,3.5,2764.9,2764.4,0.07642525]
[1645956824270,1.49281075,2764.8,2764.1,0.07642525]
[1645956824472,0.00600997,2764.6,2764.2,0.07642525]
[1645956824674,0.00600997,2764.6,2764.3,0.07642525]
[1645956824869,0.00600997,2764.6,2764.4,0.07642525]
[1645956825070,0.00600997,2764.6,2764.5,0.07642525]
[1645956825269,1.19902474,2764.6,2764.0,1.41848462]
[1645956825469,3.86226,2765.1,2764.1,0.07642525]
[1645956825673,0.0040011,2764.6,2764.1,0.07642525]
[1645956826469,1.49277984,2764.8,2764.1,0.07642525]
[1645956826670,1.49277984,2764.7,2764.1,0.98101525]
[1645956826872,0.0040011,2764.5,2764.2,0.07642525]
[1645956827718,1.4927999,2765.0,2764.2,0.07642525]
[1645956828117,0.00600747,2764.5,2764.2,0.07642525]
[1645956828521,0.00600747,2764.5,2764.3,0.07642525]
[1645956828717,0.00600747,2764.5,2764.4,0.07642525]
[1645956828918,3.5,2764.9,2764.4,0.07642525]
[1645956829119,1.49283317,2764.8,2764.5,1.14998169]
[1645956829317,1.49283317,2764.7,2764.5,1.07355644]
[1645956829520,3.8613,2765.1,2764.5,1.07355644]
[1645956829819,1.49287534,2765.0,2764.5,1.07355644]
[1645956830017,1.49287534,2765.0,2764.0,1.0492]
[1645956830018,3.5,2764.9,2764.0,1.0492]
[1645956830220,1.49287534,2764.8,2764.1,0.07642529]
[1645956831073,2.9042308,2764.8,2764.3,1.26685078]
[1645956831268,1.49287534,2764.7,2764.4,0.07642529]
[1645956831468,1.49287534,2764.8,2764.4,0.07642529]
[1645956831669,0.00600739,2764.6,2764.4,0.07642529]
[1645956831968,0.00520739,2764.6,2764.4,0.07642529]
[1645956832673,3.5,2764.9,2764.4,0.07642529]
[1645956832874,1.49277933,2764.8,2764.4,0.07642529]
[1645956834276,1.49277933,2764.7,2764.4,0.07642529]
[1645956834526,1.49373933,2765.0,2764.4,0.07642529]
[1645956834728,1.49289953,2764.9,2764.4,0.07642529]
[1645956834925,1.49289953,2764.8,2764.4,0.07642529]
[1645956835127,1.49289953,2764.7,2764.4,0.07642529]
[1645956835326,0.0040011,2764.8,2764.4,0.07642529]
[1645956835526,0.0040011,2764.8,2764.5,0.07642529]
[1645956835726,0.0040011,2764.8,2763.9,0.1446]
[1645956835929,1.49717385,2764.8,2764.0,0.07642605]